[Event "Slovakia Open Piestany-A 2022"]
[Site "Piestany"]
[Date "2022.07.16"]
[Round "7.26"]
[White "Balint, Peter"]
[Black "Gyerpal, Adrian"]
[Result "1/2-1/2"]
[ECO "C90"]
[WhiteElo "2051"]
[BlackElo "2193"]
[Annotator "ChessBase"]
[PlyCount "92"]
[EventDate "2022.07.12"]
[EventType "swiss"]
[EventCountry "SVK"]
[SourceTitle "playchess.com"]
[Source "ChessBase"]
[SourceQuality "1"]
[TimeControl "40/5400+30:1800+30"]

1. e4 {[%emt 0:00:03]} e5 {[%emt 0:03:08]} 2. Nf3 {[%emt 0:00:10]} Nc6 {[%emt 0:00:18]} 3. Bb5 {[%emt 0:00:09]} a6 {[%emt 0:00:31]} 4. Ba4 {[%emt 0:00:03]} Nf6 {[%emt 0:00:48]} 5. O-O {[%emt 0:00:06]} Be7 {[%emt 0:00:39]} 6. d3 {[%emt 0:00:07]} b5 {[%emt 0:01:25]} 7. Bb3 {[%emt 0:00:03]} d6 {[%emt 0:00:26]} 8. a4 {[%emt 0:00:39]} Bd7 {[%emt 0:09:05]} 9. c3 {[%emt 0:08:05]} O-O {[%emt 0:03:23]} 10. Nbd2 {[%emt 0:02:05]} Na5 {[%emt 0:02:02]} 11. Bc2 {[%emt 0:01:09]} c5 {[%emt 0:00:34]} 12. Re1 {[%emt 0:06:30]} Qc7 {[%emt 0:01:16]} 13. Nf1 {[%emt 0:01:37]} h6 {[%emt 0:08:34]} 14. Ng3 {[%emt 0:02:28]} Rfe8 {[%emt 0:05:29]} 15. Nh4 {[%emt 0:03:43]} Bg4 {[%emt 0:09:42]} 16. f3 {[%emt 0:14:33]} Nh7 {[%emt 0:04:16]} 17. Nhf5 {[%emt 0:05:37]} Bxf5 {[%emt 0:00:21]} 18. Nxf5 {[%emt 0:00:04]} Bf8 {[%emt 0:05:58]} 19. Be3 {[%emt 0:06:20]} Rad8 {[%emt 0:05:28]} 20. Qd2 {[%emt 0:02:05]} Nf6 {[%emt 0:06:56]} 21. axb5 {[%emt 0:01:57]} axb5 {[%emt 0:00:51]} 22. Bf2 {[%emt 0:01:19]} Ra8 {[%emt 0:03:56]} 23. Bh4 {[%emt 0:11:29]} Nh5 {[%emt 0:04:50]} 24. Ne3 {[%emt 0:02:30]} Nf4 {[%emt 0:01:57]} 25. Bg3 {[%emt 0:00:59]} Ne6 {[%emt 0:02:59]} 26. Nd5 {[%emt 0:02:18]} Qb7 {[%emt 0:01:21]} 27. Bf2 {[%emt 0:01:39]} Nc6 {[%emt 0:06:30]} 28. g3 {[%emt 0:02:20]} b4 {[%emt 0:02:41]} 29. Ba4 {[%emt 0:02:07]} Reb8 {[%emt 0:02:38]} 30. Kg2 {[%emt 0:05:00]} Ne7 {[%emt 0:02:15]} 31. c4 {[%emt 0:03:34]} Nc6 {[%emt 0:02:49]} 32. b3 {[%emt 0:01:46]} Ned4 {[%emt 0:01:19]} 33. Rab1 {[%emt 0:01:19]} Qc8 {[%emt 0:00:30]} 34. Bxd4 {[%emt 0:03:08]} Nxd4 {[%emt 0:00:11]} 35. Ne3 {[%emt 0:01:37]} Ra7 {[%emt 0:01:05]} 36. Nc2 {[%emt 0:02:17]} Ne6 {[%emt 0:00:24]} 37. f4 {[%emt 0:00:26]} exf4 {[%emt 0:00:33]} 38. gxf4 {[%emt 0:00:09]} Be7 {[%emt 0:00:45]} 39. Rf1 {[%emt 0:02:03]} Bf6 {[%emt 0:00:56]} 40. f5 {[%emt 0:03:17]} Nd4 {[%emt 0:00:41]} 41. Ne3 {[%emt 0:32:30]} Qd8 {[%emt 0:09:50]} 42. Nd5 {[%emt 0:00:00]} Kh7 {[%emt 0:01:45]} 43. Kh1 {[%emt 0:00:00]} Rba8 {[%emt 0:05:00]} 44. Qg2 {[%emt 0:00:00]} Be5 {[%emt 0:02:28]} 45. f6 {[%emt 0:00:00]} g6 {[%emt 0:00:42]} 46. Rbe1 {[%emt 0:00:00]} h5 {[%emt 0:04:05]} 1/2-1/2

[Event "Slovakia Open Piestany-A 2022"]
[Site "Piestany"]
[Date "2022.07.16"]
[Round "7.27"]
[White "Skreko, Igor"]
[Black "Compel, Daniel"]
[Result "1-0"]
[ECO "E36"]
[WhiteElo "2193"]
[BlackElo "2098"]
[Annotator "ChessBase"]
[PlyCount "59"]
[EventDate "2022.07.12"]
[EventType "swiss"]
[EventCountry "SVK"]
[SourceTitle "playchess.com"]
[Source "ChessBase"]
[SourceQuality "1"]
[TimeControl "40/5400+30:1800+30"]

1. d4 {[%emt 0:00:02]} Nf6 {[%emt 0:02:45]} 2. c4 {[%emt 0:00:06]} e6 {[%emt 0:00:03]} 3. Nc3 {[%emt 0:00:06]} Bb4 {[%emt 0:00:03]} 4. Qc2 {[%emt 0:00:08]} O-O {[%emt 0:00:05]} 5. a3 {[%emt 0:00:04]} Bxc3+ {[%emt 0:00:04]} 6. Qxc3 {[%emt 0:00:09]} d5 {[%emt 0:00:05]} 7. Bg5 {[%emt 0:00:48]} c5 {[%emt 0:00:38]} 8. dxc5 {[%emt 0:00:37]} d4 {[%emt 0:00:14]} 9. Qf3 {[%emt 0:03:36]} Nbd7 {[%emt 0:00:55]} 10. e3 {[%emt 0:01:37]} e5 {[%emt 0:04:12]} 11. O-O-O {[%emt 0:04:15]} Nxc5 {[%emt 0:01:01]} 12. Bxf6 {[%emt 0:02:46]} gxf6 {[%emt 0:03:10]} 13. exd4 {[%emt 0:04:09]} exd4 {[%emt 0:00:56]} 14. b4 {[%emt 0:04:22]} Ne6 {[%emt 0:28:58]} 15. Bd3 {[%emt 0:02:05]} Ng7 {[%emt 0:00:30]} 16. Ne2 {[%emt 0:05:31]} a5 {[%emt 0:00:42]} 17. b5 {[%emt 0:02:57]} Qd6 {[%emt 0:03:08]} 18. Bc2 {[%emt 0:07:53]} Bg4 {[%emt 0:05:47]} 19. Qxg4 {[%emt 0:00:21]} Qxa3+ {[%emt 0:00:06]} 20. Kb1 {[%emt 0:01:07]} Qb4+ {[%emt 0:00:23]} 21. Ka2 {[%emt 0:01:45]} Qxc4+ {[%emt 0:02:00]} 22. Bb3 {[%emt 0:00:17]} Qxb5 {[%emt 0:00:35]} 23. Nxd4 {[%emt 0:01:18]} Qb4 {[%emt 0:02:18]} 24. Rb1 {[%emt 0:10:54]} f5 {[%emt 0:01:01]} 25. Qf4 {[%emt 0:01:27]} Kh8 {[%emt 0:00:17]} 26. Rhc1 {[%emt 0:02:45]} b5 {[%emt 0:06:13]} 27. Bd1 {[%emt 0:05:26]} Qe7 {[%emt 0:02:52]} 28. Rxb5 {[%emt 0:02:26]} Rfd8 {[%emt 0:00:33]} 29. Bf3 {[%emt 0:05:10]} Ra6 {[%emt 0:02:07]} 30. Rb8 {[%emt 0:04:40]} 1-0

[Event "Slovakia Open Piestany-A 2022"]
[Site "Piestany"]
[Date "2022.07.16"]
[Round "7.28"]
[White "Mizicka, Matus"]
[Black "Nadzamova, Viktoria"]
[Result "0-1"]
[ECO "B31"]
[WhiteElo "1915"]
[BlackElo "2133"]
[Annotator "ChessBase"]
[PlyCount "108"]
[EventDate "2022.07.12"]
[EventType "swiss"]
[EventCountry "SVK"]
[SourceTitle "playchess.com"]
[Source "ChessBase"]
[SourceQuality "1"]
[TimeControl "40/5400+30:1800+30"]

1. e4 {[%emt 0:20:48]} c5 {[%emt 0:00:07]} 2. Be2 {[%emt 0:00:19]} d6 {[%emt 0:00:25]} 3. d3 {[%emt 0:00:06]} Nf6 {[%emt 0:01:49]} 4. f4 {[%emt 0:00:15]} Qb6 {[%emt 0:05:44]} 5. Nf3 {[%emt 0:03:04]} Nc6 {[%emt 0:10:32]} 6. c4 {[%emt 0:02:16]} g6 {[%emt 0:01:27]} 7. O-O {[%emt 0:00:42]} Bg7 {[%emt 0:00:56]} 8. Nc3 {[%emt 0:00:09]} O-O {[%emt 0:01:07]} 9. h3 {[%emt 0:00:46]} Nh5 {[%emt 0:07:23]} 10. Qe1 {[%emt 0:00:48]} Nb4 {[%emt 0:09:16]} 11. Nd5 {[%emt 0:05:26]} Nxd5 {[%emt 0:00:42]} 12. cxd5 {[%emt 0:05:00]} e6 {[%emt 0:14:00]} 13. g4 {[%emt 0:00:54]} Nf6 {[%emt 0:02:42]} 14. f5 {[%emt 0:02:54]} exf5 {[%emt 0:05:20]} 15. gxf5 {[%emt 0:01:45]} Bd7 {[%emt 0:05:51]} 16. Qh4 {[%emt 0:02:27]} Rae8 {[%emt 0:03:08]} 17. Bg5 {[%emt 0:01:23]} Qxb2 {[%emt 0:03:14]} 18. Rae1 {[%emt 0:12:15]} Nh5 {[%emt 0:05:18]} 19. Nh2 {[%emt 0:19:01]} Be5 {[%emt 0:04:49]} 20. Ng4 {[%emt 0:06:54]} Bg3 {[%emt 0:07:30]} 21. Bf6 {[%emt 0:00:14]} Qd2 {[%emt 0:00:04]} 22. Qxh5 {[%emt 0:08:02]} gxh5 {[%emt 0:00:55]} 23. Rd1 {[%emt 0:00:06]} Bf4 {[%emt 0:04:41]} 24. Rxd2 {[%emt 0:00:06]} Bxd2 {[%emt 0:00:31]} 25. Nh6+ {[%emt 0:06:22]} Bxh6 {[%emt 0:00:00]} 26. Kf2 {[%emt 0:00:06]} Bxf5 {[%emt 0:02:00]} 27. exf5 {[%emt 0:00:07]} Be3+ {[%emt 0:00:05]} 28. Kf3 {[%emt 0:01:35]} Bd4 {[%emt 0:00:26]} 29. Bxd4 {[%emt 0:00:07]} cxd4 {[%emt 0:00:02]} 30. Bd1 {[%emt 0:00:33]} Re3+ {[%emt 0:00:23]} 31. Kf4 {[%emt 0:00:11]} h4 {[%emt 0:02:18]} 32. Kg5 {[%emt 0:00:30]} Rxh3 {[%emt 0:02:00]} 33. Kf6 {[%emt 0:00:31]} Re8 {[%emt 0:01:37]} 34. Bh5 {[%emt 0:00:42]} Kf8 {[%emt 0:00:01]} 35. Rc1 {[%emt 0:00:32]} Rxd3 {[%emt 0:00:42]} 36. Bxf7 {[%emt 0:00:45]} Rc3 {[%emt 0:00:28]} 37. Rh1 {[%emt 0:00:24]} Re7 {[%emt 0:00:33]} 38. Be6 {[%emt 0:00:15]} Rg7 {[%emt 0:00:46]} 39. Rxh4 {[%emt 0:00:43]} Rf3 {[%emt 0:00:16]} 40. Rh6 {[%emt 0:00:53]} Rg6+ {[%emt 0:00:12]} 41. Rxg6 {[%emt 0:30:31]} hxg6 {[%emt 0:30:01]} 42. Kxg6 {[%emt 0:00:00]} d3 {[%emt 0:00:00]} 43. Bd7 {[%emt 0:00:00]} Rf4 {[%emt 0:00:00]} 44. Bb5 {[%emt 0:00:00]} d2 {[%emt 0:00:00]} 45. Be2 {[%emt 0:00:00]} Rf1 {[%emt 0:00:00]} 46. Kf6 {[%emt 0:00:00]} d1=Q {[%emt 0:00:00]} 47. Bxd1 {[%emt 0:00:00]} Rxd1 {[%emt 0:00:00]} 48. Ke6 {[%emt 0:00:00]} Rf1 {[%emt 0:00:00]} 49. a3 {[%emt 0:00:00]} Ke8 {[%emt 0:00:00]} 50. a4 {[%emt 0:00:00]} Kd8 {[%emt 0:00:00]} 51. f6 {[%emt 0:00:00]} Kc7 {[%emt 0:00:00]} 52. a5 {[%emt 0:00:00]} b5 {[%emt 0:00:00]} 53. axb6+ {[%emt 0:00:00]} axb6 {[%emt 0:00:00]} 54. Ke7 {[%emt 0:00:00]} b5 {[%emt 0:00:00]} 0-1

[Event "Slovakia Open Piestany-A 2022"]
[Site "Piestany"]
[Date "2022.07.16"]
[Round "7.29"]
[White "Sevcikova, Lucia"]
[Black "Tripodi, Enzo"]
[Result "1-0"]
[ECO "A88"]
[WhiteElo "2036"]
[BlackElo "2141"]
[Annotator "ChessBase"]
[PlyCount "105"]
[EventDate "2022.07.12"]
[EventType "swiss"]
[EventCountry "SVK"]
[SourceTitle "playchess.com"]
[Source "ChessBase"]
[SourceQuality "1"]
[TimeControl "40/5400+30:1800+30"]

1. d4 {[%emt 0:03:47]} f5 {[%emt 0:07:12]} 2. g3 {[%emt 0:00:12]} Nf6 {[%emt 0:00:05]} 3. Bg2 {[%emt 0:00:06]} g6 {[%emt 0:00:04]} 4. Nf3 {[%emt 0:00:12]} Bg7 {[%emt 0:00:04]} 5. O-O {[%emt 0:00:07]} O-O {[%emt 0:00:05]} 6. c4 {[%emt 0:00:05]} d6 {[%emt 0:00:04]} 7. Nc3 {[%emt 0:00:05]} c6 {[%emt 0:00:22]} 8. b3 {[%emt 0:07:14]} e5 {[%emt 0:05:41]} 9. dxe5 {[%emt 0:07:18]} dxe5 {[%emt 0:00:57]} 10. Ba3 {[%emt 0:00:43]} Qxd1 {[%emt 0:01:18]} 11. Raxd1 {[%emt 0:01:30]} Re8 {[%emt 0:00:14]} 12. e4 {[%emt 0:04:50]} fxe4 {[%emt 0:09:16]} 13. Ng5 {[%emt 0:02:10]} Bg4 {[%emt 0:03:25]} 14. Rde1 {[%emt 0:01:25]} Na6 {[%emt 0:08:52]} 15. Ngxe4 {[%emt 0:03:56]} Nxe4 {[%emt 0:00:26]} 16. Nxe4 {[%emt 0:00:22]} Rad8 {[%emt 0:02:02]} 17. Nd6 {[%emt 0:06:48]} Re7 {[%emt 0:05:23]} 18. f3 {[%emt 0:03:53]} c5 {[%emt 0:03:35]} 19. Nxb7 {[%emt 0:03:24]} Rxb7 {[%emt 0:00:07]} 20. fxg4 {[%emt 0:00:03]} Rbd7 {[%emt 0:01:19]} 21. Bd5+ {[%emt 0:04:39]} Kh8 {[%emt 0:00:06]} 22. Bb2 {[%emt 0:04:30]} Nb4 {[%emt 0:07:11]} 23. Bxe5 {[%emt 0:01:53]} Nxd5 {[%emt 0:00:05]} 24. Bxg7+ {[%emt 0:07:03]} Kxg7 {[%emt 0:00:14]} 25. cxd5 {[%emt 0:00:04]} Rxd5 {[%emt 0:00:13]} 26. Re7+ {[%emt 0:01:04]} Kh6 {[%emt 0:02:42]} 27. Rxa7 {[%emt 0:06:33]} Rd4 {[%emt 0:00:04]} 28. g5+ {[%emt 0:03:49]} Kxg5 {[%emt 0:00:16]} 29. Rxh7 {[%emt 0:00:06]} Rd2 {[%emt 0:00:12]} 30. Ra7 {[%emt 0:02:20]} Rh8 {[%emt 0:01:29]} 31. Rf2 {[%emt 0:02:26]} Rxf2 {[%emt 0:03:47]} 32. h4+ {[%emt 0:00:07]} Kg4 {[%emt 0:00:13]} 33. Kxf2 {[%emt 0:00:03]} Rf8+ {[%emt 0:00:09]} 34. Kg2 {[%emt 0:00:32]} Rd8 {[%emt 0:01:12]} 35. Ra4+ {[%emt 0:02:41]} Kf5 {[%emt 0:00:05]} 36. Kh3 {[%emt 0:01:52]} Ke5 {[%emt 0:00:54]} 37. Rc4 {[%emt 0:01:07]} Kd5 {[%emt 0:00:17]} 38. Kg4 {[%emt 0:00:45]} Ra8 {[%emt 0:00:05]} 39. Rc2 {[%emt 0:00:21]} Kd4 {[%emt 0:00:28]} 40. Kg5 {[%emt 0:00:30]} Ra6 {[%emt 0:00:01]} 41. g4 {[%emt 0:30:22]} Rc6 {[%emt 0:30:45]} 42. h5 {[%emt 0:00:22]} gxh5 {[%emt 0:00:03]} 43. gxh5 {[%emt 0:00:07]} Kd3 {[%emt 0:00:04]} 44. Rc4 {[%emt 0:01:42]} Ra6 {[%emt 0:00:06]} 45. a4 {[%emt 0:01:01]} Rb6 {[%emt 0:00:05]} 46. Rxc5 {[%emt 0:00:06]} Rxb3 {[%emt 0:00:05]} 47. h6 {[%emt 0:00:25]} Kd4 {[%emt 0:00:05]} 48. Rb5 {[%emt 0:00:28]} Rg3+ {[%emt 0:00:27]} 49. Kf6 {[%emt 0:00:47]} Kc4 {[%emt 0:00:19]} 50. h7 {[%emt 0:00:30]} Rh3 {[%emt 0:00:05]} 51. Kg6 {[%emt 0:00:18]} Rg3+ {[%emt 0:00:12]} 52. Rg5 {[%emt 0:00:06]} Rh3 {[%emt 0:00:04]} 53. Kg7 {[%emt 0:00:04]} 1-0

[Event "Slovakia Open Piestany-A 2022"]
[Site "Piestany"]
[Date "2022.07.16"]
[Round "7.31"]
[White "Saravanan Durga"]
[Black "Pennica, Andrea"]
[Result "1/2-1/2"]
[ECO "E41"]
[WhiteElo "1908"]
[BlackElo "1986"]
[Annotator "ChessBase"]
[PlyCount "125"]
[EventDate "2022.07.12"]
[EventType "swiss"]
[EventCountry "SVK"]
[SourceTitle "playchess.com"]
[Source "ChessBase"]
[SourceQuality "1"]
[TimeControl "40/5400+30:1800+30"]

1. d4 {[%emt 0:00:03]} Nf6 {[%emt 0:02:51]} 2. c4 {[%emt 0:00:08]} e6 {[%emt 0:00:06]} 3. Nc3 {[%emt 0:00:09]} Bb4 {[%emt 0:00:07]} 4. e3 {[%emt 0:00:17]} O-O {[%emt 0:00:10]} 5. Bd3 {[%emt 0:00:04]} c5 {[%emt 0:00:26]} 6. Nf3 {[%emt 0:00:19]} d6 {[%emt 0:00:50]} 7. O-O {[%emt 0:01:30]} Bxc3 {[%emt 0:00:55]} 8. bxc3 {[%emt 0:00:02]} Nc6 {[%emt 0:00:38]} 9. e4 {[%emt 0:01:04]} e5 {[%emt 0:00:15]} 10. d5 {[%emt 0:00:13]} Ne7 {[%emt 0:00:01]} 11. a4 {[%emt 0:01:10]} Ne8 {[%emt 0:02:40]} 12. Ne1 {[%emt 0:30:01]} f5 {[%emt 0:08:04]} 13. exf5 {[%emt 0:07:17]} Bxf5 {[%emt 0:03:24]} 14. Bxf5 {[%emt 0:03:43]} Rxf5 {[%emt 0:02:30]} 15. Nc2 {[%emt 0:05:43]} Ng6 {[%emt 0:02:35]} 16. Ne3 {[%emt 0:01:52]} Rf7 {[%emt 0:03:34]} 17. g3 {[%emt 0:11:17]} Nf6 {[%emt 0:03:52]} 18. Ng4 {[%emt 0:05:16]} Nxg4 {[%emt 0:05:52]} 19. Qxg4 {[%emt 0:01:59]} Qf6 {[%emt 0:00:17]} 20. Be3 {[%emt 0:07:43]} Re8 {[%emt 0:00:58]} 21. Qe4 {[%emt 0:20:06]} Qf3 {[%emt 0:09:13]} 22. Qxf3 {[%emt 0:00:05]} Rxf3 {[%emt 0:00:02]} 23. Rab1 {[%emt 0:00:06]} Re7 {[%emt 0:00:46]} 24. Rb5 {[%emt 0:01:14]} e4 {[%emt 0:01:07]} 25. Rfb1 {[%emt 0:00:05]} Rff7 {[%emt 0:00:11]} 26. Bg5 {[%emt 0:00:56]} Rd7 {[%emt 0:00:08]} 27. Re1 {[%emt 0:00:21]} h6 {[%emt 0:00:35]} 28. Bc1 {[%emt 0:00:43]} Rde7 {[%emt 0:06:47]} 29. Kg2 {[%emt 0:00:08]} Kf8 {[%emt 0:03:40]} 30. h4 {[%emt 0:00:10]} e3 {[%emt 0:02:16]} 31. Rxe3 {[%emt 0:00:17]} Rxe3 {[%emt 0:00:33]} 32. Bxe3 {[%emt 0:00:29]} Ne5 {[%emt 0:00:01]} 33. Rb1 {[%emt 0:01:45]} Nxc4 {[%emt 0:00:19]} 34. Bf4 {[%emt 0:00:32]} Rd7 {[%emt 0:00:59]} 35. Re1 {[%emt 0:00:15]} Nb6 {[%emt 0:00:55]} 36. Kf3 {[%emt 0:00:50]} Nxd5 {[%emt 0:00:07]} 37. Rd1 {[%emt 0:00:33]} Nxc3 {[%emt 0:01:05]} 38. Rxd6 {[%emt 0:00:05]} Rxd6 {[%emt 0:00:21]} 39. Bxd6+ {[%emt 0:00:01]} Kf7 {[%emt 0:00:21]} 40. Bxc5 {[%emt 0:01:23]} b6 {[%emt 0:00:16]} 41. Bb4 {[%emt 0:30:31]} Nxa4 {[%emt 0:30:12]} 42. Ke4 {[%emt 0:00:28]} Ke6 {[%emt 0:06:04]} 43. Bf8 {[%emt 0:00:00]} Nc5+ {[%emt 0:00:00]} 44. Kd4 {[%emt 0:00:00]} Kf5 {[%emt 0:00:00]} 45. Kd5 {[%emt 0:00:00]} Ne6 {[%emt 0:00:00]} 46. Bd6 {[%emt 0:00:00]} Nd8 {[%emt 0:00:00]} 47. Bb8 {[%emt 0:00:00]} a5 {[%emt 0:00:02]} 48. Bc7 {[%emt 0:00:00]} Ne6 {[%emt 0:00:20]} 49. Bxb6 {[%emt 0:00:00]} a4 {[%emt 0:00:11]} 50. Kc4 {[%emt 0:00:00]} Ke4 {[%emt 0:00:48]} 51. Kb4 {[%emt 0:00:00]} Nf8 {[%emt 0:00:12]} 52. Kxa4 {[%emt 0:00:00]} Nd7 {[%emt 0:00:06]} 53. Ba7 {[%emt 0:00:00]} Nf6 {[%emt 0:01:53]} 54. Bc5 {[%emt 0:01:02]} Ng4 {[%emt 0:01:12]} 55. h5 {[%emt 0:02:47]} Kf5 {[%emt 0:03:24]} 56. Bf8 {[%emt 0:00:08]} Kf6 {[%emt 0:00:18]} 57. Bc5 {[%emt 0:00:23]} Kf7 {[%emt 0:01:26]} 58. Bd4 {[%emt 0:00:43]} Nf6 {[%emt 0:00:34]} 59. Kb4 {[%emt 0:01:21]} Nxh5 {[%emt 0:00:20]} 60. Kc3 {[%emt 0:00:07]} Kg6 {[%emt 0:03:03]} 61. Kd3 {[%emt 0:00:10]} Kf5 {[%emt 0:01:06]} 62. Ke3 {[%emt 0:00:20]} Nf6 {[%emt 0:01:44]} 63. Kf3 {[%emt 0:01:09]} 1/2-1/2

[Event "Slovakia Open Piestany-A 2022"]
[Site "Piestany"]
[Date "2022.07.17"]
[Round "8.1"]
[White "Schitco, Ivan"]
[Black "Donchenko, Alexander"]
[Result "1/2-1/2"]
[ECO "A28"]
[WhiteElo "2490"]
[BlackElo "2640"]
[Annotator "ChessBase"]
[PlyCount "85"]
[EventDate "2022.07.12"]
[EventType "swiss"]
[EventCountry "SVK"]
[SourceTitle "playchess.com"]
[Source "ChessBase"]
[SourceQuality "1"]
[TimeControl "40/5400+30:1800+30"]

1. c4 {[%emt 0:00:05]} Nf6 {[%emt 0:00:24]} 2. Nc3 {[%emt 0:00:18]} e5 {[%emt 0:00:18]} 3. Nf3 {[%emt 0:00:19]} Nc6 {[%emt 0:00:07]} 4. d4 {[%emt 0:00:25]} exd4 {[%emt 0:01:16]} 5. Nxd4 {[%emt 0:00:16]} Bb4 {[%emt 0:00:32]} 6. g3 {[%emt 0:00:17]} Ne5 {[%emt 0:16:08]} 7. Qb3 {[%emt 0:00:38]} Bc5 {[%emt 0:04:57]} 8. Be3 {[%emt 0:01:04]} d6 {[%emt 0:09:44]} 9. Rd1 {[%emt 0:02:30]} O-O {[%emt 0:15:09]} 10. Bg2 {[%emt 0:02:53]} h6 {[%emt 0:00:40]} 11. O-O {[%emt 0:01:23]} Qe7 {[%emt 0:00:24]} 12. Nd5 {[%emt 0:11:00]} Nxd5 {[%emt 0:00:17]} 13. cxd5 {[%emt 0:00:07]} a5 {[%emt 0:03:15]} 14. h3 {[%emt 0:06:09]} Bd7 {[%emt 0:03:03]} 15. Nc2 {[%emt 0:06:09]} b6 {[%emt 0:02:41]} 16. f4 {[%emt 0:06:07]} Ng6 {[%emt 0:01:12]} 17. Bxc5 {[%emt 0:02:16]} bxc5 {[%emt 0:00:06]} 18. e4 {[%emt 0:00:09]} Rab8 {[%emt 0:01:25]} 19. Qc3 {[%emt 0:01:21]} Qf6 {[%emt 0:03:31]} 20. e5 {[%emt 0:12:23]} dxe5 {[%emt 0:00:30]} 21. f5 {[%emt 0:00:16]} Ne7 {[%emt 0:01:04]} 22. Ne3 {[%emt 0:01:14]} h5 {[%emt 0:06:29]} 23. Qxc5 {[%emt 0:11:02]} Qb6 {[%emt 0:01:52]} 24. Qxb6 {[%emt 0:05:36]} Rxb6 {[%emt 0:00:03]} 25. Rc1 {[%emt 0:03:50]} Rc8 {[%emt 0:08:42]} 26. Nc4 {[%emt 0:04:41]} Rb5 {[%emt 0:03:06]} 27. Nxe5 {[%emt 0:02:13]} Bxf5 {[%emt 0:00:22]} 28. g4 {[%emt 0:02:32]} hxg4 {[%emt 0:02:10]} 29. hxg4 {[%emt 0:00:01]} f6 {[%emt 0:01:28]} 30. Rxf5 {[%emt 0:04:49]} Nxf5 {[%emt 0:03:54]} 31. Nc6 {[%emt 0:00:53]} Ng3 {[%emt 0:06:31]} 32. Re1 {[%emt 0:03:52]} Rf8 {[%emt 0:01:10]} 33. Kf2 {[%emt 0:04:59]} f5 {[%emt 0:00:43]} 34. Kxg3 {[%emt 0:01:13]} f4+ {[%emt 0:00:02]} 35. Kf3 {[%emt 0:01:29]} Rxb2 {[%emt 0:00:03]} 36. g5 {[%emt 0:02:09]} g6 {[%emt 0:04:35]} 37. Re6 {[%emt 0:00:06]} Rxa2 {[%emt 0:00:21]} 38. Ne7+ {[%emt 0:01:38]} Kh7 {[%emt 0:00:30]} 39. Rxg6 {[%emt 0:01:01]} Ra3+ {[%emt 0:00:26]} 40. Kf2 {[%emt 0:00:20]} Ra2+ {[%emt 0:00:42]} 41. Kf3 {[%emt 0:06:21]} Ra3+ {[%emt 0:01:38]} 42. Kf2 {[%emt 0:00:17]} Ra2+ {[%emt 0:06:04]} 43. Kf3 {[%emt 0:00:53]} 1/2-1/2

[Event "Slovakia Open Piestany-A 2022"]
[Site "Piestany"]
[Date "2022.07.17"]
[Round "8.2"]
[White "Omelja, Artem"]
[Black "Niedbala, Bartlomiej"]
[Result "1/2-1/2"]
[ECO "D11"]
[WhiteElo "2478"]
[BlackElo "2381"]
[Annotator "ChessBase"]
[PlyCount "97"]
[EventDate "2022.07.12"]
[EventType "swiss"]
[EventCountry "SVK"]
[SourceTitle "playchess.com"]
[Source "ChessBase"]
[SourceQuality "1"]
[TimeControl "40/5400+30:1800+30"]

1. c4 {[%emt 0:00:15]} c6 {[%emt 0:09:40]} 2. d4 {[%emt 0:02:27]} d5 {[%emt 0:00:13]} 3. Nf3 {[%emt 0:00:22]} Nf6 {[%emt 0:00:03]} 4. Nbd2 {[%emt 0:00:39]} Bf5 {[%emt 0:02:27]} 5. Nh4 {[%emt 0:00:12]} Be4 {[%emt 0:01:57]} 6. e3 {[%emt 0:03:24]} e6 {[%emt 0:01:48]} 7. Be2 {[%emt 0:01:12]} Nbd7 {[%emt 0:06:09]} 8. Nxe4 {[%emt 0:04:57]} Nxe4 {[%emt 0:04:37]} 9. Nf3 {[%emt 0:00:20]} Bb4+ {[%emt 0:08:29]} 10. Kf1 {[%emt 0:00:27]} Bd6 {[%emt 0:06:07]} 11. g3 {[%emt 0:00:25]} O-O {[%emt 0:01:26]} 12. Kg2 {[%emt 0:00:27]} Qe7 {[%emt 0:03:04]} 13. a3 {[%emt 0:05:34]} a6 {[%emt 0:12:20]} 14. Qc2 {[%emt 0:01:18]} f5 {[%emt 0:09:00]} 15. b3 {[%emt 0:04:20]} Qf6 {[%emt 0:03:14]} 16. Bb2 {[%emt 0:01:48]} Kh8 {[%emt 0:03:38]} 17. Rad1 {[%emt 0:04:36]} Rac8 {[%emt 0:04:51]} 18. Qb1 {[%emt 0:01:58]} Ng5 {[%emt 0:02:09]} 19. Ng1 {[%emt 0:06:04]} Qh6 {[%emt 0:02:08]} 20. Bc1 {[%emt 0:05:41]} Ne4 {[%emt 0:02:58]} 21. Qb2 {[%emt 0:01:37]} Qf6 {[%emt 0:02:08]} 22. f3 {[%emt 0:02:19]} Ng5 {[%emt 0:00:05]} 23. Qd2 {[%emt 0:02:18]} Nf7 {[%emt 0:00:47]} 24. Bb2 {[%emt 0:01:24]} Qe7 {[%emt 0:01:34]} 25. Ra1 {[%emt 0:02:51]} Nf6 {[%emt 0:00:53]} 26. Nh3 {[%emt 0:00:58]} e5 {[%emt 0:03:03]} 27. c5 {[%emt 0:00:14]} Bc7 {[%emt 0:00:16]} 28. b4 {[%emt 0:00:06]} Rce8 {[%emt 0:01:01]} 29. Rae1 {[%emt 0:00:59]} Rg8 {[%emt 0:03:51]} 30. dxe5 {[%emt 0:01:36]} Bxe5 {[%emt 0:00:26]} 31. Bd3 {[%emt 0:00:06]} Bxb2 {[%emt 0:00:36]} 32. Qxb2 {[%emt 0:00:05]} Ne5 {[%emt 0:01:28]} 33. Nf2 {[%emt 0:00:16]} Rgf8 {[%emt 0:01:24]} 34. Qd4 {[%emt 0:00:32]} Qe6 {[%emt 0:00:43]} 35. Nh3 {[%emt 0:01:18]} Nfd7 {[%emt 0:01:40]} 36. Nf4 {[%emt 0:00:25]} Qe7 {[%emt 0:00:57]} 37. h4 {[%emt 0:00:43]} Nxd3 {[%emt 0:00:32]} 38. Nxd3 {[%emt 0:00:18]} Kg8 {[%emt 0:00:47]} 39. h5 {[%emt 0:00:45]} Ne5 {[%emt 0:00:41]} 40. Nxe5 {[%emt 0:04:04]} Qxe5 {[%emt 0:00:05]} 41. Kf2 {[%emt 0:30:40]} Kf7 {[%emt 0:04:06]} 42. Rd1 {[%emt 0:00:00]} Qxd4 {[%emt 0:04:08]} 43. Rxd4 {[%emt 0:00:00]} Kf6 {[%emt 0:01:46]} 44. Ke2 {[%emt 0:00:00]} Re7 {[%emt 0:04:08]} 45. Kd3 {[%emt 0:00:00]} Rfe8 {[%emt 0:00:30]} 46. Re1 {[%emt 0:00:00]} Kg5 {[%emt 0:07:09]} 47. Rf4 {[%emt 0:00:00]} Re5 {[%emt 0:03:11]} 48. Rh4 {[%emt 0:00:00]} R5e7 {[%emt 0:00:40]} 49. a4 {[%emt 0:00:00]} 1/2-1/2